fUST/lending_fUST_20250811
["ID","MTS","AMOUNT","RATE_DAILY","PERIOD"]
[378488414,1754885442201,-504.06570944,0.00020721,2]
[378488415,1754885442210,-1000.0,0.00020721,2]
[378488416,1754885442219,-862.15211871,0.00020721,2]
[378488417,1754885442232,-1000.0,0.00020721,2]
[378488418,1754885442241,-1118.4586846,0.00020721,2]
[378488419,1754885442250,-1000.0,0.00020721,2]
[378488420,1754885442259,-1128.00491223,0.00020721,2]
[378488421,1754885442269,-500.0,0.00020721,2]
[378488422,1754885442279,-527.92536643,0.00020721,2]
[378488423,1754885442289,-280.65641991,0.00020721,2]
[378488424,1754885442300,-1000.0,0.00020721,2]
[378488425,1754885442311,-1000.0,0.00020721,2]
[378488426,1754885442323,-1000.0,0.00020721,2]
[378488427,1754885442336,-500.0,0.00020772,2]
[378488428,1754885442346,-996.95,0.00020774,2]
[378488429,1754885442355,-500.0,0.00020774,2]
[378488430,1754885442364,-460.0,0.00020775,2]
[378488431,1754885442374,-155.90322173,0.00020775,2]
[378488432,1754885442383,-460.0,0.00020775,2]
[378488433,1754885442393,-460.0,0.00020775,2]
[378488434,1754885442403,-463.54,0.00020775,2]
[378488435,1754885442412,-377.09,0.00020775,2]
[378488436,1754885442422,-460.0,0.00020775,2]
[378488437,1754885442431,-460.0,0.00020775,2]
[378488438,1754885442440,-460.0,0.00020775,2]
[378488439,1754885442450,-460.0,0.00020775,2]
[378488440,1754885442459,-853.01,0.00020775,2]
[378488441,1754885442468,-460.0,0.00020775,2]
[378488442,1754885442478,-460.0,0.00020775,2]
[378488443,1754885442488,-460.0,0.00020775,2]
[378488444,1754885442497,-460.0,0.00020775,2]
[378488445,1754885442507,-3270.82,0.00020775,2]
[378488446,1754885442516,-539.67,0.00020775,2]
[378488447,1754885442525,-969.82,0.00020775,2]
[378488448,1754885442534,-460.0,0.00020775,2]
[378488449,1754885442543,-460.0,0.00020775,2]
[378488450,1754885442552,-460.0,0.00020775,2]
[378488451,1754885442561,-460.0,0.00020775,2]
[378488452,1754885442577,-399.88139194,0.00020775,2]
[378488453,1754885442589,-1614.23,0.00020775,2]
[378488454,1754885442599,-460.0,0.00020775,2]
[378488455,1754885442608,-261.06913189,0.00020775,2]
[378488456,1754885442617,-460.0,0.00020775,2]
[378488457,1754885442626,-1253.7,0.00020775,2]
[378488458,1754885442635,-1450.99,0.00020775,2]
[378488459,1754885442644,-870.94,0.00020775,2]
[378488460,1754885442653,-460.0,0.00020775,2]
[378488462,1754885442662,-779.81,0.00020775,2]
[378488464,1754885442672,-1593.74,0.00020776,2]
[378488465,1754885442681,-1058.74377794,0.0002088,2]
[378488466,1754885442691,-151.42926935,0.0002089,2]
[378488467,1754885442700,-151.0,0.000209,4]
[378488468,1754885442709,-851.6,0.00020938,2]
[378488469,1754885442718,-460.0,0.00020938,2]
[378488470,1754885442727,-2006.04,0.00020938,2]
[378488471,1754885442736,-1593.97,0.00020938,2]
[378488472,1754885442745,-460.0,0.00020938,2]
[378488473,1754885442755,-460.0,0.00020938,2]
[378488474,1754885442764,-460.0,0.00020938,2]
[378488475,1754885442772,-743.63,0.00020938,2]
[378488476,1754885442782,-2292.84201233,0.00020946,2]
[378488477,1754885442791,-460.0,0.00020947,2]
[378488478,1754885442801,-460.0,0.00020947,2]
[378488479,1754885442810,-460.0,0.00020947,2]
[378488481,1754885442819,-460.0,0.00020947,2]
[378488482,1754885442829,-271.67873486,0.00020947,2]
[378488484,1754885442838,-546.7,0.00020947,2]
[378488486,1754885442847,-460.0,0.00020947,2]
[378488487,1754885442857,-528.93,0.00020947,2]
[378488488,1754885442866,-460.0,0.00020947,2]
[378488489,1754885442876,-460.0,0.00020947,2]
[378488491,1754885442886,-2889.14,0.00020948,2]
[378488493,1754885442896,-460.0,0.00020948,2]
[378488494,1754885442906,-1381.11,0.00020948,2]
[378488495,1754885442917,-1475.73,0.00020948,2]
[378488496,1754885442926,-1919.32,0.00020948,2]
[378488497,1754885442936,-460.0,0.00020948,2]
[378488498,1754885442946,-486.37,0.00020948,2]
[378488499,1754885442955,-620.62,0.00020948,2]
[378488500,1754885442964,-460.0,0.00020948,2]
[378488501,1754885442973,-1014.76,0.00020948,2]
[378488502,1754885442983,-875.06,0.00020948,2]
[378488503,1754885442992,-996.95,0.00021048,2]
[378488504,1754885443002,-460.0,0.00021049,2]
[378488505,1754885443011,-460.0,0.00021049,2]
[378488506,1754885443020,-463.54,0.00021049,2]
[378488507,1754885443029,-607.79741401,0.00021049,2]
[378488508,1754885443038,-460.0,0.00021049,2]
[378488509,1754885443048,-853.01,0.00021049,2]
[378488510,1754885443057,-460.0,0.00021049,2]
[378488511,1754885443066,-460.0,0.00021049,2]
[378488512,1754885443075,-460.0,0.00021049,2]
[378488513,1754885443084,-460.0,0.00021049,2]
[378488514,1754885443094,-3270.82,0.00021049,2]
[378488515,1754885443103,-539.67,0.00021049,2]
[378488516,1754885443113,-969.82,0.00021049,2]
[378488517,1754885443122,-460.0,0.00021049,2]
[378488518,1754885443131,-460.0,0.00021049,2]
[378488519,1754885443140,-579.59736087,0.00021049,2]
[378488520,1754885443149,-553.41171569,0.00021049,2]
[378488521,1754885443158,-1614.23,0.00021049,2]
[378488522,1754885443167,-460.0,0.00021049,2]
[378488523,1754885443177,-460.0,0.00021049,2]
[378488524,1754885443186,-1253.7,0.00021049,2]
[378488526,1754885443195,-1450.99,0.00021049,2]
[378488527,1754885443204,-870.94,0.00021049,2]
[378488528,1754885443213,-460.0,0.00021049,2]
[378488529,1754885443225,-779.81,0.00021049,2]
[378488530,1754885443234,-1593.74,0.0002105,2]
[378488531,1754885443243,-151.0,0.000211,4]
[378488532,1754885443253,-160.0,0.00021136,2]
[378488533,1754885443262,-160.0,0.00021137,2]
[378488534,1754885443272,-160.0,0.00021137,2]
[378488535,1754885443282,-160.0,0.00021137,2]
[378488536,1754885443291,-160.0,0.00021137,2]
[378488537,1754885443301,-215.4905783,0.00021137,2]
[378488538,1754885443310,-160.0,0.00021137,2]
[378488539,1754885443319,-843.18994796,0.00021137,2]
[378488540,1754885443328,-461.69158338,0.00021137,2]
[378488541,1754885443337,-417.15472785,0.00021137,2]
[378488542,1754885443346,-216.68257536,0.00021137,2]
[378488543,1754885443355,-231.9940742,0.00021137,2]
[378488544,1754885443365,-12671.21867243,0.00021137,2]
[378488545,1754885443374,-160.0,0.00021137,2]
[378488546,1754885443383,-527.9539256,0.00021137,2]
[378488547,1754885443394,-160.0,0.00021137,2]
[378488548,1754885443403,-500.0,0.00021208,2]
[378488549,1754885443412,-851.6,0.00021212,2]
[378488550,1754885443422,-460.0,0.00021212,2]
[378488551,1754885443431,-2006.04,0.00021212,2]
[378488552,1754885443440,-1593.97,0.00021212,2]
[378488553,1754885443449,-460.0,0.00021212,2]
[378488554,1754885443458,-460.0,0.00021212,2]
[378488555,1754885443468,-460.0,0.00021212,2]
[378488556,1754885443478,-743.63,0.00021212,2]
[378488558,1754885443487,-460.0,0.00021221,2]
[378488559,1754885443497,-460.0,0.00021221,2]
[378488560,1754885443506,-460.0,0.00021221,2]
[378488561,1754885443515,-460.0,0.00021221,2]
[378488563,1754885443524,-546.7,0.00021221,2]
[378488564,1754885443533,-460.0,0.00021221,2]
[378488565,1754885443542,-528.93,0.00021221,2]
[378488567,1754885443551,-506.4979227,0.00021221,2]
[378488568,1754885443561,-2889.14,0.00021222,2]
[378488569,1754885443570,-460.0,0.00021222,2]
[378488570,1754885443580,-1381.11,0.00021222,2]
[378488571,1754885443589,-1475.73,0.00021222,2]
[378488572,1754885443598,-1919.32,0.00021222,2]
[378488573,1754885443608,-460.0,0.00021222,2]
[378488574,1754885443617,-486.37,0.00021222,2]
[378488575,1754885443626,-620.62,0.00021222,2]
[378488576,1754885443636,-460.0,0.00021222,2]
[378488577,1754885443645,-1014.76,0.00021222,2]
[378488578,1754885443653,-875.06,0.00021222,2]
[378488579,1754885443663,-1500.0,0.00021268,2]
[378488580,1754885443671,-241.54488699,0.00021268,2]
[378488581,1754885443681,-1500.0,0.00021268,2]
[378488582,1754885443690,-1380.63350914,0.00021268,2]
[378488583,1754885443699,-1500.0,0.00021268,2]
[378488584,1754885443708,-1522.2919483,0.00021268,2]
[378488585,1754885443717,-1612.23277963,0.00021268,2]
[378488586,1754885443726,-1500.0,0.00021268,2]
[378488587,1754885443736,-1500.0,0.00021268,2]
[378488589,1754885443745,-151.0,0.000213,4]
[378488590,1754885443754,-151.0,0.000213,3]
[378488591,1754885443763,-500.0,0.00021306,2]
[378488592,1754885443772,-1647.57658476,0.00021317,2]
[378488593,1754885443782,-606.97761564,0.00021317,2]
[378488594,1754885443791,-1647.57658476,0.00021317,2]
[378488595,1754885443800,-1647.57658476,0.00021317,2]
[378488596,1754885443809,-1647.57658476,0.00021317,2]
[378488597,1754885443819,-1647.57658476,0.00021317,2]
[378488598,1754885443828,-1647.57658476,0.00021317,2]
[378488599,1754885443837,-1647.57658476,0.00021317,2]
[378488600,1754885443846,-1647.57658476,0.00021317,2]
[378488601,1754885443855,-1647.57658476,0.00021317,2]
[378488602,1754885443865,-1647.57658476,0.00021317,2]
[378488603,1754885443874,-1647.57658476,0.00021317,2]
[378488604,1754885443884,-1647.57658476,0.00021317,2]
[378488605,1754885443893,-1647.57658476,0.00021317,2]
[378488606,1754885443902,-1647.57658476,0.00021317,2]
[378488607,1754885443911,-1647.57658476,0.00021317,2]
[378488608,1754885443921,-1647.57658476,0.00021317,2]
[378488609,1754885443930,-1647.57658476,0.00021317,2]
[378488610,1754885443939,-1647.57658476,0.00021317,2]
[378488611,1754885443948,-1647.57658476,0.00021317,2]
[378488612,1754885443957,-1647.57658476,0.00021317,2]
[378488613,1754885443967,-1647.57658476,0.00021317,2]
[378488614,1754885443976,-1647.57658476,0.00021317,2]
[378488615,1754885443985,-1647.57658476,0.00021317,2]
[378488616,1754885443994,-996.95,0.00021322,2]
[378488617,1754885444003,-460.0,0.00021323,2]
[378488618,1754885444013,-462.42548603,0.00021323,2]
[378488619,1754885444022,-463.54,0.00021323,2]
[378488620,1754885444031,-460.0,0.00021323,2]
[378488621,1754885444040,-853.01,0.00021323,2]
[378488622,1754885444049,-460.0,0.00021323,2]
[378488623,1754885444058,-460.0,0.00021323,2]
[378488624,1754885444067,-439.33807383,0.00021323,2]
[378488625,1754885444076,-460.0,0.00021323,2]
[378488626,1754885444085,-3270.82,0.00021323,2]
[378488627,1754885444094,-539.67,0.00021323,2]
[378488628,1754885444102,-969.82,0.00021323,2]
[378488629,1754885444112,-460.0,0.00021323,2]
[378488630,1754885444121,-460.0,0.00021323,2]
[378488631,1754885444130,-1614.23,0.00021323,2]
[378488632,1754885444139,-460.0,0.00021323,2]
[378488633,1754885444149,-460.0,0.00021323,2]
[378488634,1754885444158,-1253.7,0.00021323,2]
[378488635,1754885444167,-1450.99,0.00021323,2]
[378488636,1754885444176,-870.94,0.00021323,2]
[378488637,1754885444185,-460.0,0.00021323,2]
[378488638,1754885444194,-779.81,0.00021323,2]
[378488639,1754885444203,-1593.74,0.00021324,2]
[378488640,1754885444212,-2000.0,0.0002138,2]
[378488641,1754885444222,-2292.84201233,0.00021393,2]
[378488642,1754885444235,-162.723387,0.00021404,2]
[378488643,1754885444244,-160.0,0.0002142,2]
[378488644,1754885444254,-880.4,0.00021469,2]
[378488645,1754885444263,-851.6,0.00021486,2]
[378488646,1754885444276,-460.0,0.00021486,2]
[378488647,1754885444285,-2006.04,0.00021486,2]
[378488648,1754885444295,-1593.97,0.00021486,2]
[378488649,1754885444307,-460.0,0.00021486,2]
[378488650,1754885444318,-460.0,0.00021486,2]
[378488651,1754885444327,-460.0,0.00021486,2]
[378488652,1754885444337,-743.63,0.00021486,2]
[378488653,1754885444346,-4316.04,0.00021487,3]
[378488654,1754885444356,-2158.02,0.00021487,3]
[378488655,1754885444365,-1079.02,0.00021487,3]
[378488656,1754885444374,-539.5,0.00021487,3]
[378488657,1754885444383,-417.15472785,0.00021487,3]
[378488658,1754885444393,-12671.21867243,0.00021487,3]
[378488659,1754885444402,-215.4905783,0.00021487,3]
[378488660,1754885444411,-160.0,0.00021487,3]
[378488661,1754885444420,-527.9539256,0.00021487,3]
[378488662,1754885444429,-461.69158338,0.00021487,3]
[378488663,1754885444438,-460.0,0.00021495,2]
[378488664,1754885444447,-460.0,0.00021495,2]
[378488665,1754885444456,-460.0,0.00021495,2]
[378488666,1754885444465,-460.0,0.00021495,2]
[378488667,1754885444475,-546.7,0.00021495,2]
[378488668,1754885444484,-460.0,0.00021495,2]
[378488669,1754885444493,-528.93,0.00021495,2]
[378488670,1754885444503,-2889.14,0.00021496,2]
[378488671,1754885444511,-460.0,0.00021496,2]
[378488672,1754885444521,-1381.11,0.00021496,2]
[378488673,1754885444530,-1475.73,0.00021496,2]
[378488674,1754885444539,-1919.32,0.00021496,2]
[378488675,1754885444548,-460.0,0.00021496,2]
[378488676,1754885444557,-486.37,0.00021496,2]
[378488677,1754885444566,-620.62,0.00021496,2]
[378488678,1754885444575,-439.20336698,0.00021496,2]
[378488679,1754885444585,-1014.76,0.00021496,2]
[378488680,1754885444594,-875.06,0.00021496,2]
[378488681,1754885444604,-1000.0,0.00021497,2]
[378488682,1754885444613,-151.0,0.000215,3]
[378488683,1754885444622,-151.0,0.000215,4]
[378488684,1754885444632,-996.95,0.00021596,2]
[378488685,1754885444641,-460.0,0.00021597,2]
[378488686,1754885444650,-463.54,0.00021597,2]
[378488687,1754885444659,-460.0,0.00021597,2]
[378488688,1754885444669,-853.01,0.00021597,2]
[378488689,1754885444680,-460.0,0.00021597,2]
[378488690,1754885444689,-460.0,0.00021597,2]
[378488691,1754885444699,-460.0,0.00021597,2]
[378488692,1754885444709,-3270.82,0.00021597,2]
[378488693,1754885444724,-539.67,0.00021597,2]
[378488694,1754885444739,-969.82,0.00021597,2]
[378488695,1754885444748,-460.0,0.00021597,2]
[378488696,1754885444756,-460.0,0.00021597,2]
[378488697,1754885444766,-1614.23,0.00021597,2]
[378488698,1754885444775,-460.0,0.00021597,2]
[378488699,1754885444784,-460.0,0.00021597,2]
[378488700,1754885444793,-1450.99,0.00021597,2]
[378488701,1754885444803,-1253.7,0.00021597,2]
[378488702,1754885444812,-870.94,0.00021597,2]
[378488703,1754885444821,-460.0,0.00021597,2]
[378488704,1754885444831,-779.81,0.00021597,2]
[378488705,1754885444840,-200.60318908,0.00021598,2]
[378488706,1754885444849,-151.0,0.00021598,2]
[378488707,1754885444859,-151.0,0.00021598,2]
[378488708,1754885444869,-151.0,0.00021598,2]
[378488709,1754885444878,-151.0,0.00021598,2]
[378488710,1754885444886,-151.0,0.00021598,2]
[378488711,1754885444896,-151.0,0.00021598,2]
[378488712,1754885444905,-151.0,0.00021598,2]
[378488713,1754885444914,-208.04715937,0.00021598,2]
[378488714,1754885444924,-500.0,0.00021598,2]
[378488715,1754885444933,-151.0,0.00021598,2]
[378488716,1754885444942,-1593.74,0.00021598,2]
[378488717,1754885444952,-259.81747322,0.00021598,2]
[378488718,1754885444961,-151.0,0.00021598,2]
[378488719,1754885444971,-151.0,0.00021598,2]
[378488720,1754885444980,-151.0,0.00021598,2]
[378488721,1754885444990,-153.12418074,0.00021598,2]
[378488722,1754885444999,-151.0,0.00021598,2]
[378488723,1754885445008,-259.84493696,0.00021598,2]
[378488724,1754885445018,-151.0,0.00021598,2]
[378488725,1754885445028,-254.04480665,0.00021598,2]
[378488726,1754885445039,-151.0,0.000216,3]
[378488727,1754885445049,-429.01582161,0.00021607,2]
[378488728,1754885445059,-3098.85493454,0.00021655,2]
[378488729,1754885445069,-500.0,0.00021687,2]
[378488730,1754885445079,-151.0,0.000217,3]
[378488731,1754885445090,-151.0,0.00021711,2]
[378488732,1754885445099,-300.0,0.00021726,2]
[378488733,1754885445109,-851.6,0.0002176,2]
[378488734,1754885445120,-460.0,0.0002176,2]
[378488735,1754885445131,-2006.04,0.0002176,2]
[378488736,1754885445140,-1593.97,0.0002176,2]
[378488737,1754885445151,-460.0,0.0002176,2]
[378488738,1754885445161,-460.0,0.0002176,2]
[378488739,1754885445171,-460.0,0.0002176,2]
[378488740,1754885445183,-743.63,0.0002176,2]
[378488741,1754885445193,-460.0,0.00021769,2]
[378488742,1754885445202,-460.0,0.00021769,2]
[378488743,1754885445213,-460.0,0.00021769,2]
[378488744,1754885445223,-460.0,0.00021769,2]
[378488745,1754885445237,-546.7,0.00021769,2]
[378488746,1754885445248,-460.0,0.00021769,2]
[378488747,1754885445258,-528.93,0.00021769,2]
[378488748,1754885445269,-2889.14,0.0002177,2]
[378488749,1754885445281,-460.0,0.0002177,2]
[378488750,1754885445423,-1381.11,0.0002177,2]
[378488751,1754885445434,-1475.73,0.0002177,2]
[378488752,1754885445443,-1919.32,0.0002177,2]
[378488753,1754885445452,-460.0,0.0002177,2]
[378488754,1754885445462,-486.37,0.0002177,2]
[378488755,1754885445471,-620.62,0.0002177,2]
[378488756,1754885445481,-1014.76,0.0002177,2]
[378488757,1754885445490,-875.06,0.0002177,2]
[378488758,1754885445499,-1000.0,0.0002178,2]
[378488759,1754885445508,-880.4,0.00021781,2]
[378488760,1754885445517,-500.61074542,0.00021781,2]
[378488761,1754885445527,-501.12325849,0.00021781,2]
[378488762,1754885445536,-151.0,0.000218,3]
[378488763,1754885445545,-2000.0,0.00021816,2]
[378488764,1754885445554,-2000.0,0.00021816,2]
[378488765,1754885445563,-2000.0,0.00021816,2]
[378488766,1754885445573,-1058.50465855,0.00021816,2]
[378488767,1754885445582,-2000.0,0.00021816,2]
[378488768,1754885445591,-2292.84201233,0.0002184,2]
[378488769,1754885445600,-996.95,0.0002187,2]
[378488770,1754885445609,-460.0,0.00021871,2]
[378488771,1754885445619,-463.54,0.00021871,2]
[378488772,1754885445628,-460.0,0.00021871,2]
[378488773,1754885445637,-853.01,0.00021871,2]
[378488774,1754885445647,-307.33532359,0.00021871,2]
[378488775,1754885445656,-460.0,0.00021871,2]
[378488776,1754885445665,-460.0,0.00021871,2]
[378488777,1754885445674,-3270.82,0.00021871,2]
[378488778,1754885445683,-539.67,0.00021871,2]
[378488779,1754885445692,-969.82,0.00021871,2]
[378488780,1754885445702,-460.0,0.00021871,2]
[378488781,1754885445711,-460.0,0.00021871,2]
[378488782,1754885445721,-1614.23,0.00021871,2]
[378488783,1754885445730,-460.0,0.00021871,2]
[378488784,1754885445739,-460.0,0.00021871,2]
[378488785,1754885445748,-1450.99,0.00021871,2]
[378488786,1754885445758,-1253.7,0.00021871,2]
[378488787,1754885445767,-870.94,0.00021871,2]
[378488788,1754885445775,-460.0,0.00021871,2]
[378488789,1754885445785,-779.81,0.00021871,2]
[378488790,1754885445794,-151.0,0.00021872,2]
[378488791,1754885445804,-151.0,0.00021872,2]
[378488792,1754885445813,-151.0,0.00021872,2]
[378488793,1754885445822,-528.8236247,0.00021872,2]
[378488794,1754885445831,-207.57689405,0.00021872,2]
[378488795,1754885445841,-281.16867974,0.00021872,2]
[378488796,1754885445850,-199.60582241,0.00021872,2]
[378488797,1754885445859,-151.0,0.00021872,2]
[378488798,1754885445869,-151.0,0.00021872,2]
[378488799,1754885445878,-1593.74,0.00021872,2]
[378488800,1754885445887,-151.0,0.000219,4]
[378488801,1754885445896,-500.0,0.00021917,2]
[378488802,1754885445906,-500.0,0.00021917,2]
[378488803,1754885445915,-504.71768055,0.00021917,2]
[378488804,1754885445924,-10858.64,0.00021917,2]
[378488805,1754885445933,-260.0,0.00021968,2]
[378488806,1754885445942,-500.0,0.00021973,2]
[378488807,1754885445951,-500.41696923,0.00021973,2]
[378488808,1754885445960,-509.5504893,0.00021973,2]
[378488809,1754885445970,-500.0,0.00021973,2]
[378488810,1754885445979,-185.25659566,0.00021973,2]
[378488811,1754885445989,-500.0,0.00021973,2]
[378488812,1754885445998,-535.9525052,0.00021973,2]
[378488813,1754885446007,-500.0,0.00021973,2]
[378488814,1754885446017,-500.0,0.00021973,2]
[378488815,1754885446026,-500.0,0.00021973,2]
[378488816,1754885446035,-500.0,0.00021973,2]
[378488817,1754885446044,-500.0,0.00021973,2]
[378488818,1754885446054,-248.49009127,0.00021973,2]
[378488819,1754885446063,-158.46341349,0.00021973,2]
[378488820,1754885446073,-500.0,0.00021973,2]
[378488821,1754885446082,-500.0,0.00021973,2]
[378488822,1754885446091,-158.46401038,0.00021973,2]
[378488823,1754885446101,-158.4611667,0.00021973,2]
[378488824,1754885446110,-500.0,0.00021973,2]
[378488825,1754885446120,-500.0,0.00021973,2]
[378488826,1754885446129,-150.0,0.00021973,2]
[378488827,1754885446139,-500.24729121,0.00021973,2]
[378488829,1754885446148,-505.589476,0.00021973,2]
[378488830,1754885446157,-500.0,0.00021973,2]
[378488831,1754885446167,-500.0,0.00021973,2]
[378488832,1754885446176,-500.0,0.00021973,2]
[378488833,1754885446185,-500.0,0.00021973,2]
[378488834,1754885446194,-500.0,0.00021973,2]
[378488835,1754885446203,-500.0,0.00021973,2]
[378488836,1754885446213,-500.0,0.00021973,2]
[378488837,1754885446224,-501.39986974,0.00021973,2]
[378488838,1754885446235,-150.10004413,0.00021973,2]
[378488839,1754885446244,-500.0,0.00021973,2]
[378488840,1754885446253,-500.0,0.00021973,2]
[378488841,1754885446262,-501.324461,0.00021973,2]
[378488842,1754885446272,-600.0,0.00021973,2]
[378488843,1754885446282,-459.83092009,0.00021973,2]
[378488844,1754885446291,-500.0,0.00021973,2]
[378488845,1754885446302,-500.67424642,0.00021973,2]
[378488846,1754885446311,-500.0,0.00021973,2]
[378488847,1754885446321,-500.0,0.00021973,2]
[378488848,1754885446330,-500.78623683,0.00021973,2]
[378488849,1754885446339,-500.0,0.00021973,2]
[378488850,1754885446349,-160.04889471,0.00021973,2]
[378488851,1754885446359,-500.0,0.00021973,2]
[378488852,1754885446368,-500.0,0.00021973,2]
[378488853,1754885446377,-574.589025,0.00021973,2]
[378488854,1754885446386,-500.0,0.00021973,2]
[378488855,1754885446395,-500.0,0.00021973,2]
[378488856,1754885446404,-500.0,0.00021973,2]
[378488857,1754885446413,-501.87300072,0.00021973,2]
[378488858,1754885446422,-500.49069383,0.00021973,2]
[378488859,1754885446432,-500.0,0.00021973,2]
[378488860,1754885446441,-500.0,0.00021973,2]
[378488861,1754885446451,-501.16908685,0.00021973,2]
[378488863,1754885446461,-500.0,0.00021973,2]
[378488865,1754885446470,-500.0,0.00021973,2]
[378488866,1754885446479,-500.0,0.00021973,2]
[378488867,1754885446488,-500.0,0.00021973,2]
[378488868,1754885446498,-501.71607261,0.00021973,2]
[378488869,1754885446507,-500.59351251,0.00021973,2]
[378488870,1754885446516,-500.0,0.00021973,2]
[378488871,1754885446526,-500.0,0.00021973,2]
[378488872,1754885446535,-500.0,0.00021973,2]
[378488873,1754885446544,-500.0,0.00021973,2]
[378488874,1754885446554,-500.0,0.00021973,2]
[378488875,1754885446563,-500.0,0.00021973,2]
[378488876,1754885446572,-500.0,0.00021973,2]
[378488877,1754885446581,-500.0,0.00021973,2]
[378488879,1754885446590,-500.0,0.00021973,2]
[378488881,1754885446599,-500.0,0.00021999,2]
[378488883,1754885446610,-500.0,0.00021999,2]
[378488885,1754885446619,-227.5082231,0.00021999,2]
[378488887,1754885446628,-46641.88,0.00022,2]
[378488889,1754885446637,-10223.58,0.00022,7]
[378488890,1754885446646,-151.0,0.00022,8]
[378488891,1754885446656,-20555.21,0.00022,7]
[378488892,1754885446665,-17009.32215064,0.00022,7]
[378488951,1754885716533,4370.228364,0.00030136,120]
[378488991,1754886139619,162.723387,0.00013699,2]
[378488993,1754886151443,8000.0,0.00030137,120]
[378489015,1754886241687,566.4625007,0.00018951,2]
[378489020,1754886270622,343.504264,0.00018951,2]
[378489035,1754886426679,4116.2266098,0.00018961,2]
[378489043,1754886507776,161.0,0.0001945,2]
[378489045,1754886524187,754.999999,0.00031312,120]
[378489049,1754886543530,200.0,0.0001897,21]
[378489116,1754886632119,-160.15683092,0.000198,2]
[378489118,1754886632129,-5361.58966744,0.000199,2]
[378489124,1754886632175,-841.95494257,0.000199,2]
[378489126,1754886632185,-321.76186626,0.000199,2]
[378489128,1754886632194,-706.17,0.00019951,2]
[378489130,1754886632203,-460.0,0.00019952,2]
[378489132,1754886632213,-568.67,0.00019952,2]
[378489134,1754886632222,-251.78539392,0.00019952,2]
[378489209,1754886637765,-208.21460608,0.00019952,2]
[378489212,1754886637775,-460.0,0.00019952,2]
[378489215,1754886637785,-368.06723386,0.00019952,2]
[378489217,1754886637795,-738.6,0.00019952,2]
[378489219,1754886637806,-2046.47,0.00019952,2]
[378489221,1754886637816,-460.0,0.00019952,2]
[378489224,1754886637826,-1359.52,0.00019952,2]
[378489226,1754886637835,-460.0,0.00019952,2]
[378489228,1754886637845,-460.0,0.00019952,2]
[378489230,1754886637854,-541.64,0.00019952,2]
[378489232,1754886637864,-603.21,0.00019952,2]
[378489234,1754886637874,-460.0,0.00019952,2]
[378489236,1754886637884,-460.0,0.00019952,2]
[378489238,1754886637893,-460.0,0.00019952,2]
[378489240,1754886637904,-460.0,0.00019952,2]
[378489242,1754886637914,-460.0,0.00019952,2]
[378489244,1754886637923,-1660.39,0.00019952,2]
[378489246,1754886637933,-460.0,0.00019952,2]
[378489248,1754886637943,-460.0,0.00019952,2]
[378489250,1754886637952,-460.0,0.00019952,2]
[378489252,1754886637962,-460.0,0.00019952,2]
[378489254,1754886637973,-153.76454265,0.00019952,2]
[378489257,1754886637982,-619.83,0.00019952,2]
[378489258,1754886637991,-978.29,0.00019952,2]
[378489261,1754886638001,-460.0,0.00019952,2]